[Event "CZE-ch Youth G10-G12-G14 2022"]
[Site "Luhacovice"]
[Date "2022.03.19"]
[Round "9.14"]
[White "Barteckova, Nikol"]
[Black "Buchtova, Viktorie"]
[Result "1/2-1/2"]
[ECO "B22"]
[WhiteElo "1140"]
[BlackElo "1464"]
[Annotator "NA"]
[PlyCount "92"]
[EventDate "2022.03.12"]
[EventType "swiss"]
[EventCountry "CZE"]
[SourceTitle "playchess.com"]
[Source "ChessBase"]
[SourceQuality "1"]
[TimeControl "40/5400+30:1800+30"]

1. e4 {[%emt 0:00:03]} c5 {[%emt 0:00:05]} 2. c3 {[%emt 0:00:05]} d6 {[%emt 0:00:05]} 3. d4 {[%emt 0:00:07]} cxd4 {[%emt 0:00:04]} 4. cxd4 {[%emt 0:00:07]} Nf6 {[%emt 0:00:13]} 5. Nc3 {[%emt 0:00:20]} g6 {[%emt 0:00:18]} 6. Nf3 {[%emt 0:01:59]} Bg7 {[%emt 0:00:08]} 7. Be3 {[%emt 0:00:52]} O-O {[%emt 0:00:31]} 8. Be2 {[%emt 0:00:48]} Bd7 {[%emt 0:13:55]} 9. O-O {[%emt 0:01:53]} Nc6 {[%emt 0:06:45]} 10. Qd2 {[%emt 0:10:18]} Ng4 {[%emt 0:01:13]} 11. Bf4 {[%emt 0:00:32]} Rc8 {[%emt 0:09:43]} 12. Rac1 {[%emt 0:02:20]} f5 {[%emt 0:11:42]} 13. exf5 {[%emt 0:02:38]} Bxf5 {[%emt 0:00:27]} 14. h3 {[%emt 0:00:30]} Nf6 {[%emt 0:00:30]} 15. Bh6 {[%emt 0:00:26]} Bxh6 {[%emt 0:04:12]} 16. Qxh6 {[%emt 0:00:19]} Qb6 {[%emt 0:02:22]} 17. Qd2 {[%emt 0:02:35]} Ne4 {[%emt 0:03:29]} 18. Nxe4 {[%emt 0:06:32]} Bxe4 {[%emt 0:00:05]} 19. Rfe1 {[%emt 0:01:34]} d5 {[%emt 0:25:29]} 20. Ng5 {[%emt 0:03:51]} Qxd4 {[%emt 0:01:23]} 21. Qxd4 {[%emt 0:00:31]} Nxd4 {[%emt 0:00:07]} 22. Rxc8 {[%emt 0:00:13]} Rxc8 {[%emt 0:00:55]} 23. Nxe4 {[%emt 0:00:05]} Nxe2+ {[%emt 0:04:21]} 24. Rxe2 {[%emt 0:00:21]} Rc1+ {[%emt 0:00:49]} 25. Kh2 {[%emt 0:00:14]} dxe4 {[%emt 0:00:04]} 26. Rxe4 {[%emt 0:00:06]} Rc2 {[%emt 0:02:08]} 27. Rxe7 {[%emt 0:00:12]} Rxb2 {[%emt 0:00:31]} 28. Kg3 {[%emt 0:00:17]} a5 {[%emt 0:01:30]} 29. a4 {[%emt 0:01:59]} b6 {[%emt 0:01:23]} 30. Rb7 {[%emt 0:00:48]} Rb4 {[%emt 0:01:08]} 31. f3 {[%emt 0:00:28]} h5 {[%emt 0:01:21]} 32. f4 {[%emt 0:00:34]} Kf8 {[%emt 0:00:09]} 33. Kh4 {[%emt 0:00:32]} Rxf4+ {[%emt 0:01:29]} 34. Kg5 {[%emt 0:00:03]} Rxa4 {[%emt 0:00:08]} 35. Rxb6 {[%emt 0:00:29]} Ra2 {[%emt 0:01:09]} 36. g4 {[%emt 0:01:00]} hxg4 {[%emt 0:01:21]} 37. hxg4 {[%emt 0:00:05]} a4 {[%emt 0:00:38]} 38. Ra6 {[%emt 0:00:11]} a3 {[%emt 0:01:00]} 39. Kxg6 {[%emt 0:00:54]} Ra1 {[%emt 0:00:00]} 40. g5 {[%emt 0:00:13]} a2 {[%emt 0:00:00]} 41. Ra7 {[%emt 0:30:36]} Ke8 {[%emt 0:30:41]} 42. Kg7 {[%emt 0:01:10]} Kd8 {[%emt 0:00:05]} 43. g6 {[%emt 0:00:31]} Kc8 {[%emt 0:00:51]} 44. Kg8 {[%emt 0:00:16]} Kb8 {[%emt 0:01:03]} 45. Ra3 {[%emt 0:00:06]} Rg1 {[%emt 0:04:09]} 46. Rxa2 {[%emt 0:00:57]} Rxg6+ {[%emt 0:00:02]} 1/2-1/2

[Event "CZE-ch Youth G10-G12-G14 2022"]
[Site "Luhacovice"]
[Date "2022.03.19"]
[Round "9.15"]
[White "Stehlikova, Vanessa"]
[Black "Martinkova Klara"]
[Result "1-0"]
[ECO "C47"]
[WhiteElo "1039"]
[BlackElo "1177"]
[Annotator "NA"]
[PlyCount "69"]
[EventDate "2022.03.12"]
[EventType "swiss"]
[EventCountry "CZE"]
[SourceTitle "playchess.com"]
[Source "ChessBase"]
[SourceQuality "1"]
[TimeControl "40/5400+30:1800+30"]

1. e4 {[%emt 0:00:02]} e5 {[%emt 0:00:06]} 2. Nf3 {[%emt 0:00:03]} Nc6 {[%emt 0:00:21]} 3. d4 {[%emt 0:00:05]} exd4 {[%emt 0:00:14]} 4. Nxd4 {[%emt 0:00:04]} Nf6 {[%emt 0:00:20]} 5. Nc3 {[%emt 0:00:09]} Bb4 {[%emt 0:00:25]} 6. Nxc6 {[%emt 0:00:07]} bxc6 {[%emt 0:00:15]} 7. Bd3 {[%emt 0:00:09]} d5 {[%emt 0:00:15]} 8. exd5 {[%emt 0:00:04]} O-O {[%emt 0:00:07]} 9. Bg5 {[%emt 0:00:09]} Re8+ {[%emt 0:00:33]} 10. Be2 {[%emt 0:00:45]} Ba6 {[%emt 0:01:15]} 11. O-O {[%emt 0:01:01]} Bxc3 {[%emt 0:00:45]} 12. Bxa6 {[%emt 0:00:08]} Bxb2 {[%emt 0:00:10]} 13. Rb1 {[%emt 0:00:11]} Ba3 {[%emt 0:00:29]} 14. dxc6 {[%emt 0:00:19]} Qxd1 {[%emt 0:01:12]} 15. Rfxd1 {[%emt 0:00:01]} Ne4 {[%emt 0:01:13]} 16. Bh4 {[%emt 0:00:51]} Nc3 {[%emt 0:00:16]} 17. Bg3 {[%emt 0:00:56]} Nxb1 {[%emt 0:01:14]} 18. Rxb1 {[%emt 0:00:06]} Rab8 {[%emt 0:00:29]} 19. Bb7 {[%emt 0:00:15]} Re7 {[%emt 0:06:59]} 20. Rd1 {[%emt 0:02:24]} Rbe8 {[%emt 0:01:35]} 21. f3 {[%emt 0:00:31]} Bc5+ {[%emt 0:01:23]} 22. Kf1 {[%emt 0:00:48]} f5 {[%emt 0:01:20]} 23. Bf2 {[%emt 0:00:34]} Bxf2 {[%emt 0:01:26]} 24. Kxf2 {[%emt 0:00:03]} f4 {[%emt 0:02:46]} 25. Ba6 {[%emt 0:00:09]} Re6 {[%emt 0:01:43]} 26. Bc4 {[%emt 0:00:12]} Kf8 {[%emt 0:01:49]} 27. Bxe6 {[%emt 0:00:10]} Rxe6 {[%emt 0:00:04]} 28. Rd8+ {[%emt 0:00:23]} Ke7 {[%emt 0:00:19]} 29. Rd7+ {[%emt 0:00:30]} Kf6 {[%emt 0:01:14]} 30. Rxc7 {[%emt 0:00:04]} Rd6 {[%emt 0:00:36]} 31. Ke2 {[%emt 0:00:21]} a5 {[%emt 0:00:55]} 32. Rc8 {[%emt 0:00:07]} g6 {[%emt 0:02:29]} 33. c7 {[%emt 0:01:26]} Rc6 {[%emt 0:00:45]} 34. Rf8+ {[%emt 0:00:28]} Ke6 {[%emt 0:01:03]} 35. c8=Q+ {[%emt 0:00:11]} 1-0

[Event "CZE-ch Youth G10-G12-G14 2022"]
[Site "Luhacovice"]
[Date "2022.03.19"]
[Round "9.16"]
[White "Hladka, Leontyna"]
[Black "Kavanova Valentyna"]
[Result "1-0"]
[ECO "C08"]
[WhiteElo "1134"]
[BlackElo "1000"]
[Annotator "NA"]
[PlyCount "47"]
[EventDate "2022.03.12"]
[EventType "swiss"]
[EventCountry "CZE"]
[SourceTitle "playchess.com"]
[Source "ChessBase"]
[SourceQuality "1"]
[TimeControl "40/5400+30:1800+30"]

1. e4 {[%emt 0:00:04]} e6 {[%emt 0:00:01]} 2. d4 {[%emt 0:00:09]} d5 {[%emt 0:00:14]} 3. Nd2 {[%emt 0:00:12]} c5 {[%emt 0:00:20]} 4. exd5 {[%emt 0:00:16]} exd5 {[%emt 0:00:08]} 5. Ngf3 {[%emt 0:00:18]} Bg4 {[%emt 0:00:33]} 6. Bb5+ {[%emt 0:01:08]} Nc6 {[%emt 0:00:07]} 7. O-O {[%emt 0:00:44]} cxd4 {[%emt 0:01:20]} 8. Re1+ {[%emt 0:00:27]} Be7 {[%emt 0:00:10]} 9. Qe2 {[%emt 0:03:15]} Nf6 {[%emt 0:00:34]} 10. Nb3 {[%emt 0:00:53]} a6 {[%emt 0:01:29]} 11. Bxc6+ {[%emt 0:00:45]} bxc6 {[%emt 0:00:08]} 12. Nbxd4 {[%emt 0:01:19]} Rc8 {[%emt 0:04:58]} 13. Bf4 {[%emt 0:01:49]} c5 {[%emt 0:01:15]} 14. Nb3 {[%emt 0:01:36]} d4 {[%emt 0:01:36]} 15. h3 {[%emt 0:03:08]} Nd5 {[%emt 0:02:14]} 16. Bg5 {[%emt 0:08:33]} c4 {[%emt 0:03:03]} 17. Bxe7 {[%emt 0:05:56]} Nxe7 {[%emt 0:00:14]} 18. Nbxd4 {[%emt 0:00:42]} Bh5 {[%emt 0:00:38]} 19. Nf5 {[%emt 0:04:44]} Rc7 {[%emt 0:00:34]} 20. Nxg7+ {[%emt 0:00:32]} Kd7 {[%emt 0:00:18]} 21. Rad1+ {[%emt 0:00:24]} Kc8 {[%emt 0:03:27]} 22. Rxd8+ {[%emt 0:00:15]} Rxd8 {[%emt 0:00:11]} 23. Nxh5 {[%emt 0:00:22]} Re8 {[%emt 0:03:39]} 24. Nf6 {[%emt 0:01:06]} 1-0

[Event "CZE-ch Youth G10-G12-G14 2022"]
[Site "Luhacovice"]
[Date "2022.03.19"]
[Round "9.17"]
[White "Lukaskova Ellen"]
[Black "Markina, Sofiia"]
[Result "1-0"]
[ECO "B80"]
[WhiteElo "1058"]
[BlackElo "1367"]
[Annotator "NA"]
[PlyCount "107"]
[EventDate "2022.03.12"]
[EventType "swiss"]
[EventCountry "CZE"]
[SourceTitle "playchess.com"]
[Source "ChessBase"]
[SourceQuality "1"]
[TimeControl "40/5400+30:1800+30"]

1. e4 {[%emt 0:00:03]} c5 {[%emt 0:00:05]} 2. Nf3 {[%emt 0:00:04]} e6 {[%emt 0:00:05]} 3. Nc3 {[%emt 0:00:55]} d6 {[%emt 0:00:14]} 4. d4 {[%emt 0:00:47]} cxd4 {[%emt 0:00:06]} 5. Nxd4 {[%emt 0:00:09]} Nf6 {[%emt 0:00:22]} 6. Be3 {[%emt 0:02:20]} Be7 {[%emt 0:00:20]} 7. f3 {[%emt 0:02:01]} O-O {[%emt 0:00:14]} 8. Qd2 {[%emt 0:01:56]} Nc6 {[%emt 0:00:25]} 9. O-O-O {[%emt 0:03:49]} a6 {[%emt 0:03:30]} 10. g4 {[%emt 0:05:10]} Qc7 {[%emt 0:02:07]} 11. h4 {[%emt 0:04:28]} b5 {[%emt 0:01:27]} 12. Nxc6 {[%emt 0:02:10]} Qxc6 {[%emt 0:00:10]} 13. a3 {[%emt 0:04:06]} Nd7 {[%emt 0:03:10]} 14. g5 {[%emt 0:05:22]} Ne5 {[%emt 0:01:30]} 15. Be2 {[%emt 0:05:25]} Nc4 {[%emt 0:02:15]} 16. Bxc4 {[%emt 0:00:58]} bxc4 {[%emt 0:00:11]} 17. h5 {[%emt 0:12:38]} Rb8 {[%emt 0:01:15]} 18. g6 {[%emt 0:02:48]} Qb7 {[%emt 0:00:42]} 19. Rdg1 {[%emt 0:02:06]} Qxb2+ {[%emt 0:00:49]} 20. Kd1 {[%emt 0:00:37]} Bf6 {[%emt 0:01:38]} 21. h6 {[%emt 0:06:12]} Bxc3 {[%emt 0:03:17]} 22. gxh7+ {[%emt 0:00:16]} Kh8 {[%emt 0:00:11]} 23. hxg7+ {[%emt 0:00:33]} Bxg7 {[%emt 0:00:02]} 24. Bh6 {[%emt 0:02:25]} Bxh6 {[%emt 0:02:36]} 25. Qxh6 {[%emt 0:02:32]} Qd4+ {[%emt 0:01:11]} 26. Ke2 {[%emt 0:01:57]} Bd7 {[%emt 0:00:32]} 27. Rg8+ {[%emt 0:04:40]} Rxg8 {[%emt 0:00:15]} 28. hxg8=Q+ {[%emt 0:01:08]} Kxg8 {[%emt 0:00:07]} 29. Qh7+ {[%emt 0:00:30]} Kf8 {[%emt 0:00:05]} 30. Qh8+ {[%emt 0:00:41]} Qxh8 {[%emt 0:00:05]} 31. Rxh8+ {[%emt 0:00:08]} Ke7 {[%emt 0:00:04]} 32. Rxb8 {[%emt 0:00:04]} Bb5 {[%emt 0:00:08]} 33. Ke3 {[%emt 0:04:18]} Kf6 {[%emt 0:00:20]} 34. Rb6 {[%emt 0:01:16]} Ke7 {[%emt 0:00:20]} 35. f4 {[%emt 0:01:51]} Kd7 {[%emt 0:00:15]} 36. Rb7+ {[%emt 0:00:46]} Ke8 {[%emt 0:00:21]} 37. f5 {[%emt 0:02:01]} exf5 {[%emt 0:00:47]} 38. exf5 {[%emt 0:00:11]} f6 {[%emt 0:00:05]} 39. Ra7 {[%emt 0:02:08]} Bd7 {[%emt 0:01:07]} 40. Rxa6 {[%emt 0:02:07]} Bxf5 {[%emt 0:00:11]} 41. Rxd6 {[%emt 0:31:23]} Bxc2 {[%emt 0:30:08]} 42. Rxf6 {[%emt 0:00:44]} Ke7 {[%emt 0:00:15]} 43. Rc6 {[%emt 0:02:03]} Bb3 {[%emt 0:00:06]} 44. Kd4 {[%emt 0:02:07]} Kd7 {[%emt 0:00:17]} 45. Rh6 {[%emt 0:03:43]} Kc7 {[%emt 0:00:20]} 46. Kc3 {[%emt 0:00:32]} Kb7 {[%emt 0:00:11]} 47. Kb4 {[%emt 0:00:15]} Ka7 {[%emt 0:00:12]} 48. a4 {[%emt 0:00:40]} Kb7 {[%emt 0:00:10]} 49. a5 {[%emt 0:00:41]} Ka7 {[%emt 0:00:11]} 50. Rb6 {[%emt 0:02:06]} Ka8 {[%emt 0:00:12]} 51. a6 {[%emt 0:02:33]} Ka7 {[%emt 0:00:12]} 52. Ka5 {[%emt 0:00:32]} c3 {[%emt 0:00:25]} 53. Rxb3 {[%emt 0:00:26]} c2 {[%emt 0:00:10]} 54. Rc3 {[%emt 0:00:12]} 1-0

[Event "CZE-ch Youth G10-G12-G14 2022"]
[Site "Luhacovice"]
[Date "2022.03.19"]
[Round "9.18"]
[White "Kammova, Katerina"]
[Black "Bartova Hana"]
[Result "1-0"]
[ECO "C44"]
[WhiteElo "1376"]
[BlackElo "1000"]
[Annotator "NA"]
[PlyCount "45"]
[EventDate "2022.03.12"]
[EventType "swiss"]
[EventCountry "CZE"]
[SourceTitle "playchess.com"]
[Source "ChessBase"]
[SourceQuality "1"]
[TimeControl "40/5400+30:1800+30"]

1. e4 {[%emt 0:00:05]} e5 {[%emt 0:00:05]} 2. d4 {[%emt 0:00:03]} exd4 {[%emt 0:00:27]} 3. Nf3 {[%emt 0:00:12]} Nc6 {[%emt 0:00:21]} 4. c3 {[%emt 0:00:15]} dxc3 {[%emt 0:00:48]} 5. Nxc3 {[%emt 0:00:26]} Bc5 {[%emt 0:01:46]} 6. Bc4 {[%emt 0:01:17]} Nge7 {[%emt 0:01:25]} 7. Ng5 {[%emt 0:01:39]} O-O {[%emt 0:00:40]} 8. Qh5 {[%emt 0:00:56]} h6 {[%emt 0:06:02]} 9. Nxf7 {[%emt 0:00:55]} Rxf7 {[%emt 0:00:18]} 10. Bxf7+ {[%emt 0:00:59]} Kf8 {[%emt 0:03:20]} 11. O-O {[%emt 0:07:07]} d6 {[%emt 0:05:36]} 12. Bb3 {[%emt 0:02:01]} Qe8 {[%emt 0:03:46]} 13. Qf3+ {[%emt 0:00:51]} Nf5 {[%emt 0:02:38]} 14. exf5 {[%emt 0:00:50]} Bd4 {[%emt 0:07:36]} 15. Qd5 {[%emt 0:03:35]} Qh5 {[%emt 0:05:26]} 16. Qg8+ {[%emt 0:03:28]} Ke7 {[%emt 0:00:50]} 17. Re1+ {[%emt 0:01:34]} Be5 {[%emt 0:02:17]} 18. Qxg7+ {[%emt 0:00:52]} Kd8 {[%emt 0:01:14]} 19. Qf8+ {[%emt 0:00:22]} Qe8 {[%emt 0:00:35]} 20. Qxe8+ {[%emt 0:00:18]} Kxe8 {[%emt 0:00:09]} 21. f4 {[%emt 0:00:34]} Bxf5 {[%emt 0:01:33]} 22. fxe5 {[%emt 0:00:12]} dxe5 {[%emt 0:00:19]} 23. Bxh6 {[%emt 0:00:20]} 1-0

[Event "CZE-ch Youth G10-G12-G14 2022"]
[Site "Luhacovice"]
[Date "2022.03.19"]
[Round "9.19"]
[White "Barteckova, Valerie"]
[Black "Krisicova Neli"]
[Result "1-0"]
[ECO "C61"]
[WhiteElo "1250"]
[BlackElo "1093"]
[Annotator "NA"]
[PlyCount "120"]
[EventDate "2022.03.12"]
[EventType "swiss"]
[EventCountry "CZE"]
[SourceTitle "playchess.com"]
[Source "ChessBase"]
[SourceQuality "1"]
[TimeControl "40/5400+30:1800+30"]

1. e4 {[%emt 0:00:04]} e5 {[%emt 0:00:09]} 2. Nf3 {[%emt 0:00:06]} Nc6 {[%emt 0:00:09]} 3. Bb5 {[%emt 0:00:08]} Nd4 {[%emt 0:01:05]} 4. Nxd4 {[%emt 0:01:38]} exd4 {[%emt 0:00:19]} 5. O-O {[%emt 0:00:26]} Bc5 {[%emt 0:01:31]} 6. Re1 {[%emt 0:00:38]} Ne7 {[%emt 0:01:32]} 7. Bc4 {[%emt 0:01:21]} O-O {[%emt 0:01:43]} 8. d3 {[%emt 0:00:28]} h6 {[%emt 0:00:56]} 9. Qf3 {[%emt 0:01:40]} c6 {[%emt 0:02:02]} 10. Qg3 {[%emt 0:04:04]} Ng6 {[%emt 0:01:48]} 11. Nd2 {[%emt 0:02:57]} d5 {[%emt 0:03:10]} 12. exd5 {[%emt 0:00:58]} cxd5 {[%emt 0:00:13]} 13. Bb3 {[%emt 0:01:45]} a5 {[%emt 0:04:53]} 14. a3 {[%emt 0:00:38]} Re8 {[%emt 0:02:05]} 15. Rxe8+ {[%emt 0:04:03]} Qxe8 {[%emt 0:00:15]} 16. Bxd5 {[%emt 0:03:12]} Qe1+ {[%emt 0:05:03]} 17. Nf1 {[%emt 0:00:49]} Ra6 {[%emt 0:04:31]} 18. f3 {[%emt 0:02:07]} Qe7 {[%emt 0:02:07]} 19. Bd2 {[%emt 0:02:19]} Bf5 {[%emt 0:04:17]} 20. Re1 {[%emt 0:01:54]} Qd7 {[%emt 0:01:31]} 21. Bb3 {[%emt 0:10:30]} a4 {[%emt 0:04:49]} 22. Ba2 {[%emt 0:02:00]} Rb6 {[%emt 0:01:16]} 23. Bc1 {[%emt 0:00:46]} Qc6 {[%emt 0:07:26]} 24. Bc4 {[%emt 0:08:34]} Qd7 {[%emt 0:04:31]} 25. Qb8+ {[%emt 0:01:24]} Kh7 {[%emt 0:00:46]} 26. Qe8 {[%emt 0:01:06]} Qxe8 {[%emt 0:00:39]} 27. Rxe8 {[%emt 0:00:08]} Be6 {[%emt 0:00:56]} 28. Bxe6 {[%emt 0:01:03]} fxe6 {[%emt 0:00:36]} 29. Ra8 {[%emt 0:00:49]} Ra6 {[%emt 0:00:47]} 30. Rxa6 {[%emt 0:00:36]} bxa6 {[%emt 0:00:04]} 31. Ng3 {[%emt 0:00:22]} Ne7 {[%emt 0:00:46]} 32. Ne4 {[%emt 0:00:46]} Bb6 {[%emt 0:00:27]} 33. Kf2 {[%emt 0:01:44]} Kg6 {[%emt 0:00:07]} 34. Bd2 {[%emt 0:01:36]} Kf5 {[%emt 0:00:39]} 35. Nd6+ {[%emt 0:00:56]} Kf6 {[%emt 0:00:36]} 36. Nc4 {[%emt 0:03:25]} Ba7 {[%emt 0:00:34]} 37. Ke2 {[%emt 0:02:01]} Nd5 {[%emt 0:02:54]} 38. Na5 {[%emt 0:02:13]} g5 {[%emt 0:03:04]} 39. Nc6 {[%emt 0:01:10]} Bc5 {[%emt 0:02:09]} 40. Nb8 {[%emt 0:01:01]} Nc7 {[%emt 0:00:21]} 41. Nd7+ {[%emt 0:30:19]} Ke7 {[%emt 0:30:20]} 42. Nxc5 {[%emt 0:00:23]} Kd6 {[%emt 0:00:12]} 43. Nxa4 {[%emt 0:00:47]} e5 {[%emt 0:00:31]} 44. Nb6 {[%emt 0:00:29]} Ne6 {[%emt 0:00:34]} 45. Nc4+ {[%emt 0:01:09]} Kd5 {[%emt 0:00:13]} 46. g3 {[%emt 0:01:55]} h5 {[%emt 0:00:17]} 47. h3 {[%emt 0:03:01]} h4 {[%emt 0:00:30]} 48. g4 {[%emt 0:04:05]} Kc5 {[%emt 0:00:57]} 49. Nxe5 {[%emt 0:00:37]} Kd5 {[%emt 0:00:17]} 50. Nf7 {[%emt 0:00:47]} Nf4+ {[%emt 0:00:22]} 51. Bxf4 {[%emt 0:00:16]} gxf4 {[%emt 0:00:05]} 52. Nh6 {[%emt 0:00:19]} Ke5 {[%emt 0:00:09]} 53. Nf5 {[%emt 0:00:33]} Kd5 {[%emt 0:00:12]} 54. Nxh4 {[%emt 0:00:17]} Ke5 {[%emt 0:00:07]} 55. Ng2 {[%emt 0:00:25]} a5 {[%emt 0:00:10]} 56. h4 {[%emt 0:00:26]} a4 {[%emt 0:00:12]} 57. h5 {[%emt 0:00:28]} Kf6 {[%emt 0:00:05]} 58. Nxf4 {[%emt 0:00:12]} Kg5 {[%emt 0:00:06]} 59. Ne6+ {[%emt 0:00:12]} Kh6 {[%emt 0:00:10]} 60. Nxd4 {[%emt 0:00:17]} Kh7 {[%emt 0:00:20]} 1-0

[Event "CZE-ch Youth G10-G12-G14 2022"]
[Site "Luhacovice"]
[Date "2022.03.19"]
[Round "9.20"]
[White "Bouchalova, Kveta"]
[Black "Sochorova Valentyna"]
[Result "1-0"]
[ECO "C30"]
[WhiteElo "1303"]
[BlackElo "1201"]
[Annotator "NA"]
[PlyCount "45"]
[EventDate "2022.03.12"]
[EventType "swiss"]
[EventCountry "CZE"]
[SourceTitle "playchess.com"]
[Source "ChessBase"]
[SourceQuality "1"]
[TimeControl "40/5400+30:1800+30"]

1. e4 {[%emt 0:00:02]} e5 {[%emt 0:00:11]} 2. f4 {[%emt 0:00:06]} Bc5 {[%emt 0:00:13]} 3. Nf3 {[%emt 0:00:06]} d6 {[%emt 0:00:17]} 4. Bc4 {[%emt 0:00:12]} Nf6 {[%emt 0:00:29]} 5. Nc3 {[%emt 0:00:05]} Nc6 {[%emt 0:00:33]} 6. d3 {[%emt 0:00:14]} a6 {[%emt 0:01:07]} 7. Qe2 {[%emt 0:02:57]} Qe7 {[%emt 0:15:14]} 8. Be3 {[%emt 0:08:19]} Bxe3 {[%emt 0:03:47]} 9. Qxe3 {[%emt 0:00:14]} b5 {[%emt 0:06:41]} 10. Nd5 {[%emt 0:15:06]} Nxd5 {[%emt 0:14:40]} 11. Bxd5 {[%emt 0:00:27]} Bb7 {[%emt 0:10:07]} 12. a3 {[%emt 0:04:43]} O-O {[%emt 0:10:41]} 13. O-O {[%emt 0:04:29]} Rab8 {[%emt 0:04:56]} 14. Rf2 {[%emt 0:12:27]} Nd8 {[%emt 0:08:06]} 15. Ba2 {[%emt 0:03:56]} Ne6 {[%emt 0:04:50]} 16. fxe5 {[%emt 0:05:47]} dxe5 {[%emt 0:06:42]} 17. Nxe5 {[%emt 0:04:05]} Ng5 {[%emt 0:03:41]} 18. Nd7 {[%emt 0:08:09]} Qxd7 {[%emt 0:02:20]} 19. Qxg5 {[%emt 0:00:10]} Qd4 {[%emt 0:02:42]} 20. Rb1 {[%emt 0:01:44]} Bc8 {[%emt 0:01:42]} 21. Qg3 {[%emt 0:03:00]} Qc5 {[%emt 0:00:55]} 22. c3 {[%emt 0:03:45]} Qb6 {[%emt 0:00:45]} 23. Rbf1 {[%emt 0:02:20]} 1-0

[Event "CZE-ch Youth G10-G12-G14 2022"]
[Site "Luhacovice"]
[Date "2022.03.19"]
[Round "9.21"]
[White "Kubatova Ema"]
[Black "Kubatova Beta"]
[Result "0-1"]
[ECO "B22"]
[WhiteElo "1183"]
[BlackElo "1071"]
[Annotator "NA"]
[PlyCount "170"]
[EventDate "2022.03.12"]
[EventType "swiss"]
[EventCountry "CZE"]
[SourceTitle "playchess.com"]
[Source "ChessBase"]
[SourceQuality "1"]
[TimeControl "40/5400+30:1800+30"]

1. e4 {[%emt 0:00:09]} c5 {[%emt 0:00:18]} 2. c3 {[%emt 0:00:34]} d5 {[%emt 0:00:23]} 3. exd5 {[%emt 0:00:37]} Qxd5 {[%emt 0:00:13]} 4. d4 {[%emt 0:00:30]} Nc6 {[%emt 0:00:31]} 5. Nf3 {[%emt 0:00:35]} Bg4 {[%emt 0:01:05]} 6. Be2 {[%emt 0:00:38]} Nf6 {[%emt 0:00:50]} 7. Be3 {[%emt 0:00:36]} cxd4 {[%emt 0:00:25]} 8. cxd4 {[%emt 0:00:24]} e6 {[%emt 0:00:51]} 9. O-O {[%emt 0:01:28]} Qd7 {[%emt 0:01:04]} 10. Nc3 {[%emt 0:04:05]} a6 {[%emt 0:05:04]} 11. a3 {[%emt 0:05:01]} Bd6 {[%emt 0:00:55]} 12. Qd2 {[%emt 0:01:03]} O-O {[%emt 0:01:14]} 13. Rac1 {[%emt 0:00:19]} Rac8 {[%emt 0:02:00]} 14. Rfd1 {[%emt 0:01:05]} Rfd8 {[%emt 0:01:22]} 15. Qd3 {[%emt 0:20:01]} b5 {[%emt 0:02:08]} 16. b4 {[%emt 0:01:32]} Bf5 {[%emt 0:22:48]} 17. Qd2 {[%emt 0:01:24]} h6 {[%emt 0:04:08]} 18. h3 {[%emt 0:05:27]} Bc7 {[%emt 0:01:03]} 19. Ne1 {[%emt 0:01:33]} Bb6 {[%emt 0:06:21]} 20. Nf3 {[%emt 0:01:11]} Ne4 {[%emt 0:04:19]} 21. Nxe4 {[%emt 0:08:01]} Bxe4 {[%emt 0:00:14]} 22. Ne5 {[%emt 0:07:17]} Nxe5 {[%emt 0:00:12]} 23. Rxc8 {[%emt 0:01:08]} Qxc8 {[%emt 0:00:38]} 24. Rc1 {[%emt 0:00:48]} Qb7 {[%emt 0:00:30]} 25. Qb2 {[%emt 0:01:07]} Bd3 {[%emt 0:00:52]} 26. dxe5 {[%emt 0:01:46]} Bxe3 {[%emt 0:00:21]} 27. fxe3 {[%emt 0:00:19]} Qb6 {[%emt 0:00:41]} 28. Kf2 {[%emt 0:00:54]} Bxe2 {[%emt 0:00:58]} 29. Qxe2 {[%emt 0:00:55]} Rd5 {[%emt 0:00:38]} 30. Rc8+ {[%emt 0:02:33]} Kh7 {[%emt 0:00:27]} 31. Qc2+ {[%emt 0:02:10]} g6 {[%emt 0:00:17]} 32. Qe4 {[%emt 0:02:31]} Qb7 {[%emt 0:01:08]} 33. Qc2 {[%emt 0:03:17]} Rxe5 {[%emt 0:02:01]} 34. Rc7 {[%emt 0:02:06]} Rf5+ {[%emt 0:00:28]} 35. Kg1 {[%emt 0:02:44]} Qb6 {[%emt 0:01:08]} 36. Rc5 {[%emt 0:04:52]} Qa7 {[%emt 0:04:50]} 37. Rxf5 {[%emt 0:03:15]} gxf5 {[%emt 0:00:17]} 38. Qc5 {[%emt 0:01:11]} Qb7 {[%emt 0:00:24]} 39. Qd6 {[%emt 0:05:56]} Qc8 {[%emt 0:01:46]} 40. Kh2 {[%emt 0:01:00]} Kg6 {[%emt 0:01:28]} 41. Qb6 {[%emt 0:32:04]} h5 {[%emt 0:31:31]} 42. Kg3 {[%emt 0:04:26]} Kg5 {[%emt 0:02:12]} 43. Qa7 {[%emt 0:02:21]} h4+ {[%emt 0:00:35]} 44. Kh2 {[%emt 0:00:41]} Kg6 {[%emt 0:00:04]} 45. Qd4 {[%emt 0:00:48]} Qc7+ {[%emt 0:02:13]} 46. Kg1 {[%emt 0:00:31]} Qc1+ {[%emt 0:01:53]} 47. Kh2 {[%emt 0:00:31]} Qxa3 {[%emt 0:01:02]} 48. Qxh4 {[%emt 0:00:21]} Qxe3 {[%emt 0:00:38]} 49. Qe7 {[%emt 0:00:41]} Qe5+ {[%emt 0:01:41]} 50. Kg1 {[%emt 0:00:32]} Qe1+ {[%emt 0:00:29]} 51. Kh2 {[%emt 0:00:20]} a5 {[%emt 0:00:35]} 52. bxa5 {[%emt 0:00:30]} Qxa5 {[%emt 0:00:05]} 53. h4 {[%emt 0:00:36]} Qd2 {[%emt 0:01:14]} 54. Kh3 {[%emt 0:00:33]} Kg7 {[%emt 0:01:10]} 55. h5 {[%emt 0:00:31]} b4 {[%emt 0:00:18]} 56. g3 {[%emt 0:00:30]} b3 {[%emt 0:00:15]} 57. Qc5 {[%emt 0:00:30]} Qb2 {[%emt 0:01:18]} 58. Qb5 {[%emt 0:00:31]} Qc3 {[%emt 0:00:42]} 59. Qb6 {[%emt 0:00:24]} b2 {[%emt 0:00:22]} 60. Qb7 {[%emt 0:00:29]} Qf6 {[%emt 0:00:34]} 61. Qb8 {[%emt 0:00:25]} Qd4 {[%emt 0:01:50]} 62. Qb7 {[%emt 0:00:15]} Qg1 {[%emt 0:01:17]} 63. Qxb2+ {[%emt 0:00:38]} Kh7 {[%emt 0:00:54]} 64. Qh2 {[%emt 0:00:32]} Qxh2+ {[%emt 0:00:21]} 65. Kxh2 {[%emt 0:00:06]} Kh6 {[%emt 0:00:03]} 66. Kg2 {[%emt 0:00:17]} Kxh5 {[%emt 0:00:10]} 67. Kf3 {[%emt 0:00:10]} f6 {[%emt 0:00:16]} 68. Ke3 {[%emt 0:00:11]} Kg4 {[%emt 0:00:24]} 69. Kf2 {[%emt 0:00:14]} e5 {[%emt 0:00:30]} 70. Kg2 {[%emt 0:00:12]} f4 {[%emt 0:00:09]} 71. gxf4 {[%emt 0:00:15]} exf4 {[%emt 0:00:15]} 72. Kf2 {[%emt 0:00:24]} f5 {[%emt 0:00:24]} 73. Ke2 {[%emt 0:00:30]} Kg3 {[%emt 0:00:09]} 74. Kf1 {[%emt 0:00:07]} Kf3 {[%emt 0:00:25]} 75. Kg1 {[%emt 0:00:08]} Ke2 {[%emt 0:00:14]} 76. Kg2 {[%emt 0:00:07]} f3+ {[%emt 0:00:10]} 77. Kg3 {[%emt 0:00:08]} f2 {[%emt 0:00:13]} 78. Kf4 {[%emt 0:00:06]} f1=Q+ {[%emt 0:00:39]} 79. Ke5 {[%emt 0:00:07]} f4 {[%emt 0:00:21]} 80. Kd5 {[%emt 0:00:07]} f3 {[%emt 0:00:19]} 81. Ke5 {[%emt 0:00:06]} f2 {[%emt 0:00:06]} 82. Kd4 {[%emt 0:00:08]} Qd1+ {[%emt 0:00:05]} 83. Ke5 {[%emt 0:00:06]} f1=R {[%emt 0:00:16]} 84. Ke6 {[%emt 0:00:06]} Qa4 {[%emt 0:00:44]} 85. Ke5 {[%emt 0:00:12]} Rf4 {[%emt 0:00:11]} 0-1